[Event "Titled Tuesday Blitz June 20 Early 2023"]
[White "Samaganova, Aleksandra"]
[Black "Lenaerts, Lennert"]
[WhiteFideId "13800221"]
[BlackFideId "211435"]
[WhiteElo "1858"]
[BlackElo "2334"]
[Result "0-1"]
[Round "1"]
[TimeControl "180+2"]
[Date "2023.06.20"]
[WhiteClock "0:00:28"]
[BlackClock "0:01:08"]
[Board "166"]

1. c4 {[%clk 0:02:58]}  e5 {[%clk 0:02:54]} 2. Nc3 {[%clk 0:02:57]}  Bb4 {[%clk 0:02:53]} 3. Qc2 {[%clk 0:02:57]}  Nf6 {[%clk 0:02:47]} 4. g3 {[%clk 0:02:56]}  O-O {[%clk 0:02:45]} 5. Bg2 {[%clk 0:02:56]}  c6 {[%clk 0:02:42]} 6. Nf3 {[%clk 0:02:54]}  Re8 {[%clk 0:02:42]} 7. O-O {[%clk 0:02:54]}  d5 {[%clk 0:02:42]} 8. cxd5 {[%clk 0:02:53]}  cxd5 {[%clk 0:02:43]} 9. d4 {[%clk 0:02:50]}  e4 {[%clk 0:02:43]} 10. Nd2 {[%clk 0:02:42]}  Nc6 {[%clk 0:02:42]} 11. e3 {[%clk 0:02:42]}  Bf5 {[%clk 0:02:37]} 12. h3 {[%clk 0:02:40]}  Qd7 {[%clk 0:02:37]} 13. Kh2 {[%clk 0:02:40]}  Rac8 {[%clk 0:02:35]} 14. Qa4 {[%clk 0:02:37]}  a6 {[%clk 0:02:28]} 15. a3 {[%clk 0:02:30]}  Bd6 {[%clk 0:02:28]} 16. Qd1 {[%clk 0:02:23]}  h5 {[%clk 0:02:28]} 17. Ne2 {[%clk 0:02:20]}  h4 {[%clk 0:02:25]} 18. Nf4 {[%clk 0:02:11]}  g5 {[%clk 0:02:23]} 19. Nh5 {[%clk 0:02:06]}  Qe7 {[%clk 0:02:03]} 20. Nxf6+ {[%clk 0:01:48]}  Qxf6 {[%clk 0:02:04]} 21. Qh5 {[%clk 0:01:48]}  Kg7 {[%clk 0:02:03]} 22. f4 {[%clk 0:01:29]}  exf3 {[%clk 0:01:56]} 23. Qxf3 {[%clk 0:01:27]}  Bxg3+ {[%clk 0:01:42]} 24. Kg1 {[%clk 0:01:18]}  Ne7 {[%clk 0:01:43]} 25. e4 {[%clk 0:01:13]}  dxe4 {[%clk 0:01:40]} 26. Nxe4 {[%clk 0:01:11]}  Qxd4+ {[%clk 0:01:38]} 27. Be3 {[%clk 0:01:10]}  Qxe4 {[%clk 0:01:34]} 28. Qxe4 {[%clk 0:01:10]}  Bxe4 {[%clk 0:01:35]} 29. Bxe4 {[%clk 0:01:10]}  Nc6 {[%clk 0:01:24]} 30. Bxc6 {[%clk 0:01:05]}  Rxe3 {[%clk 0:01:23]} 31. Bxb7 {[%clk 0:00:57]}  Rc2 {[%clk 0:01:23]} 32. Bg2 {[%clk 0:00:49]}  Ree2 {[%clk 0:01:09]} 33. Bd5 {[%clk 0:00:48]}  Bh2+ {[%clk 0:01:09]} 34. Kh1 {[%clk 0:00:48]}  Bf4 {[%clk 0:01:10]} 35. Rad1 {[%clk 0:00:35]}  Rh2+ {[%clk 0:01:09]} 36. Kg1 {[%clk 0:00:34]}  Be3+ {[%clk 0:01:10]} 37. Rf2 {[%clk 0:00:33]}  Rhxf2 {[%clk 0:01:09]} 38. Kh1 {[%clk 0:00:28]}  Rh2# {[%clk 0:01:08]} 0-1


[Site "https://www.chess.com"]

[Event "Titled Tuesday Blitz June 20 Early 2023"]
[White "MAHanif"]
[Black "Kumsiashvili, Nikoloz"]
[BlackFideId "13600621"]
[WhiteElo "2307"]
[BlackElo "2299"]
[Result "0-1"]
[Round "1"]
[TimeControl "180+2"]
[Date "2023.06.20"]
[WhiteClock "0:00:00"]
[BlackClock "0:00:41"]
[Board "168"]

1. d4 {[%clk 0:02:43]}  Nf6 {[%clk 0:02:58]} 2. Nf3 {[%clk 0:02:44]}  g6 {[%clk 0:02:56]} 3. g3 {[%clk 0:02:42]}  Bg7 {[%clk 0:02:56]} 4. Bg2 {[%clk 0:02:42]}  O-O {[%clk 0:02:56]} 5. O-O {[%clk 0:02:37]}  d5 {[%clk 0:02:55]} 6. Nbd2 {[%clk 0:02:35]}  c5 {[%clk 0:02:48]} 7. c3 {[%clk 0:02:34]}  Nc6 {[%clk 0:02:29]} 8. e3 {[%clk 0:02:30]}  b6 {[%clk 0:02:24]} 9. Ne5 {[%clk 0:02:26]}  Bb7 {[%clk 0:02:23]} 10. f4 {[%clk 0:02:22]}  Nb8 {[%clk 0:02:06]} 11. b3 {[%clk 0:02:16]}  Nbd7 {[%clk 0:02:06]} 12. Bb2 {[%clk 0:02:14]}  Ne8 {[%clk 0:02:03]} 13. Qf3 {[%clk 0:02:09]}  Ndf6 {[%clk 0:02:02]} 14. h4 {[%clk 0:02:02]}  Nd6 {[%clk 0:02:00]} 15. Qe2 {[%clk 0:01:54]}  Nf5 {[%clk 0:01:44]} 16. Qf2 {[%clk 0:01:40]}  h5 {[%clk 0:01:40]} 17. Bf3 {[%clk 0:01:38]}  Nd6 {[%clk 0:01:31]} 18. Qg2 {[%clk 0:01:20]}  Nde4 {[%clk 0:01:27]} 19. Nxe4 {[%clk 0:01:19]}  dxe4 {[%clk 0:01:24]} 20. Be2 {[%clk 0:01:18]}  Nd5 {[%clk 0:01:16]} 21. Qf2 {[%clk 0:01:14]}  cxd4 {[%clk 0:01:07]} 22. cxd4 {[%clk 0:01:04]}  Rc8 {[%clk 0:01:03]} 23. Rfc1 {[%clk 0:01:02]}  Kh7 {[%clk 0:00:51]} 24. Bc4 {[%clk 0:00:16]}  f6 {[%clk 0:00:40]} 25. Bxd5 {[%clk 0:00:02]}  Bxd5 {[%clk 0:00:41]} 26. Nc4 {[%clk 0:00:00]}  Qd7 {[%clk 0:00:41]} 0-1


[Site "https://www.chess.com"]

[Event "Titled Tuesday Blitz June 20 Early 2023"]
[White "Taichman, Ori"]
[Black "Calderin Gonzalez, Roberto"]
[WhiteFideId "2804069"]
[BlackFideId "5102979"]
[WhiteElo "2237"]
[BlackElo "2306"]
[Result "1-0"]
[Round "1"]
[TimeControl "180+2"]
[Date "2023.06.20"]
[WhiteClock "0:00:52"]
[BlackClock "0:00:00"]
[Board "169"]

1. e4 {[%clk 0:02:58]}  c5 {[%clk 0:02:59]} 2. Nf3 {[%clk 0:02:58]}  Nc6 {[%clk 0:02:59]} 3. Bb5 {[%clk 0:02:57]}  g6 {[%clk 0:02:55]} 4. c3 {[%clk 0:02:58]}  Bg7 {[%clk 0:02:54]} 5. d4 {[%clk 0:02:58]}  cxd4 {[%clk 0:02:54]} 6. cxd4 {[%clk 0:02:58]}  a6 {[%clk 0:02:48]} 7. Ba4 {[%clk 0:02:58]}  Nf6 {[%clk 0:02:45]} 8. Nc3 {[%clk 0:02:54]}  O-O {[%clk 0:02:41]} 9. e5 {[%clk 0:02:40]}  Ne8 {[%clk 0:02:38]} 10. Bf4 {[%clk 0:02:29]}  d6 {[%clk 0:02:36]} 11. O-O {[%clk 0:02:15]}  Bg4 {[%clk 0:02:28]} 12. Bxc6 {[%clk 0:02:07]}  bxc6 {[%clk 0:02:27]} 13. h3 {[%clk 0:02:07]}  Bxf3 {[%clk 0:02:16]} 14. Qxf3 {[%clk 0:02:08]}  d5 {[%clk 0:02:16]} 15. Na4 {[%clk 0:02:06]}  Nc7 {[%clk 0:02:10]} 16. Nc5 {[%clk 0:01:59]}  Nb5 {[%clk 0:02:10]} 17. Qd3 {[%clk 0:01:55]}  e6 {[%clk 0:02:03]} 18. a4 {[%clk 0:01:54]}  Nc7 {[%clk 0:01:49]} 19. Bd2 {[%clk 0:01:53]}  Qe7 {[%clk 0:01:45]} 20. Ba5 {[%clk 0:01:52]}  Rfb8 {[%clk 0:01:43]} 21. b3 {[%clk 0:01:47]}  Rc8 {[%clk 0:01:26]} 22. f4 {[%clk 0:01:45]}  Bf8 {[%clk 0:01:24]} 23. g4 {[%clk 0:01:34]}  Qe8 {[%clk 0:01:24]} 24. b4 {[%clk 0:01:29]}  Bxc5 {[%clk 0:01:23]} 25. bxc5 {[%clk 0:01:29]}  Qd7 {[%clk 0:01:20]} 26. f5 {[%clk 0:01:28]}  Rcb8 {[%clk 0:01:16]} 27. Rab1 {[%clk 0:00:59]}  Qc8 {[%clk 0:01:00]} 28. Rb6 {[%clk 0:00:57]}  Rxb6 {[%clk 0:00:54]} 29. Bxb6 {[%clk 0:00:57]}  Kh8 {[%clk 0:00:38]} 30. fxg6 {[%clk 0:00:54]}  hxg6 {[%clk 0:00:36]} 31. Rxf7 {[%clk 0:00:53]}  Ne8 {[%clk 0:00:00]} 32. Qxg6 {[%clk 0:00:52]} 1-0


[Site "https://www.chess.com"]

[Event "Titled Tuesday Blitz June 20 Early 2023"]
[White "Arat, Ufuk Sezen"]
[Black "Buscar, Michael"]
[WhiteFideId "6309089"]
[BlackFideId "2603616"]
[WhiteElo "2289"]
[BlackElo "2010"]
[Result "1/2-1/2"]
[Round "1"]
[TimeControl "180+2"]
[Date "2023.06.20"]
[WhiteClock "0:00:09"]
[BlackClock "0:00:07"]
[Board "173"]

1. e4 {[%clk 0:03:00]}  c5 {[%clk 0:02:59]} 2. Nf3 {[%clk 0:03:01]}  Nc6 {[%clk 0:03:00]} 3. d4 {[%clk 0:03:00]}  cxd4 {[%clk 0:03:01]} 4. Nxd4 {[%clk 0:03:01]}  Nf6 {[%clk 0:03:01]} 5. Nc3 {[%clk 0:03:01]}  e5 {[%clk 0:03:02]} 6. Ndb5 {[%clk 0:02:59]}  h6 {[%clk 0:03:02]} 7. Nd6+ {[%clk 0:02:54]}  Bxd6 {[%clk 0:03:02]} 8. Qxd6 {[%clk 0:02:55]}  Qe7 {[%clk 0:03:03]} 9. Qxe7+ {[%clk 0:02:43]}  Kxe7 {[%clk 0:03:04]} 10. Bc4 {[%clk 0:02:43]}  d6 {[%clk 0:03:03]} 11. f3 {[%clk 0:02:43]}  Be6 {[%clk 0:03:04]} 12. Bb3 {[%clk 0:02:43]}  Nd4 {[%clk 0:03:02]} 13. Ne2 {[%clk 0:02:27]}  Nxb3 {[%clk 0:02:56]} 14. axb3 {[%clk 0:02:26]}  d5 {[%clk 0:02:53]} 15. exd5 {[%clk 0:02:25]}  Nxd5 {[%clk 0:02:52]} 16. Bd2 {[%clk 0:02:25]}  Rhd8 {[%clk 0:02:38]} 17. c4 {[%clk 0:02:21]}  Nc7 {[%clk 0:02:20]} 18. Rc1 {[%clk 0:01:54]}  f6 {[%clk 0:02:18]} 19. Nc3 {[%clk 0:01:49]}  Rd3 {[%clk 0:01:58]} 20. Ke2 {[%clk 0:01:46]}  Rad8 {[%clk 0:01:58]} 21. Be3 {[%clk 0:01:45]}  a6 {[%clk 0:01:45]} 22. Bb6 {[%clk 0:01:40]}  R3d7 {[%clk 0:01:43]} 23. Ne4 {[%clk 0:01:13]}  Rc8 {[%clk 0:01:34]} 24. Nc5 {[%clk 0:00:59]}  Rd6 {[%clk 0:01:31]} 25. Na4 {[%clk 0:00:56]}  Na8 {[%clk 0:00:55]} 26. Bc5 {[%clk 0:00:55]}  Rxc5 {[%clk 0:00:44]} 27. Nxc5 {[%clk 0:00:56]}  Bc8 {[%clk 0:00:45]} 28. Rhd1 {[%clk 0:00:55]}  Rxd1 {[%clk 0:00:39]} 29. Rxd1 {[%clk 0:00:55]}  Nc7 {[%clk 0:00:40]} 30. Ne4 {[%clk 0:00:52]}  Ne8 {[%clk 0:00:36]} 31. c5 {[%clk 0:00:51]}  Be6 {[%clk 0:00:31]} 32. b4 {[%clk 0:00:52]}  Bc4+ {[%clk 0:00:31]} 33. Ke3 {[%clk 0:00:52]}  Bb5 {[%clk 0:00:32]} 34. g4 {[%clk 0:00:51]}  Bc6 {[%clk 0:00:31]} 35. h4 {[%clk 0:00:50]}  Nc7 {[%clk 0:00:31]} 36. Nc3 {[%clk 0:00:50]}  Ne6 {[%clk 0:00:29]} 37. Nd5+ {[%clk 0:00:49]}  Kf7 {[%clk 0:00:24]} 38. Nc3 {[%clk 0:00:37]}  Nf4 {[%clk 0:00:22]} 39. g5 {[%clk 0:00:31]}  Ng2+ {[%clk 0:00:20]} 40. Kf2 {[%clk 0:00:31]}  Nxh4 {[%clk 0:00:20]} 41. gxh6 {[%clk 0:00:31]}  gxh6 {[%clk 0:00:20]} 42. Ne4 {[%clk 0:00:32]}  Nf5 {[%clk 0:00:20]} 43. Nd6+ {[%clk 0:00:31]}  Nxd6 {[%clk 0:00:20]} 44. cxd6 {[%clk 0:00:32]}  Ke6 {[%clk 0:00:20]} 45. Kg3 {[%clk 0:00:33]}  Bd5 {[%clk 0:00:21]} 46. f4 {[%clk 0:00:32]}  Kxd6 {[%clk 0:00:20]} 47. Kg4 {[%clk 0:00:29]}  exf4 {[%clk 0:00:20]} 48. Kxf4 {[%clk 0:00:29]}  Kc6 {[%clk 0:00:20]} 49. Kf5 {[%clk 0:00:27]}  Bf3 {[%clk 0:00:19]} 50. Rd4 {[%clk 0:00:28]}  Kb5 {[%clk 0:00:17]} 51. Kxf6 {[%clk 0:00:28]}  h5 {[%clk 0:00:17]} 52. Ke5 {[%clk 0:00:17]}  Bg4 {[%clk 0:00:13]} 53. Kd6 {[%clk 0:00:17]}  Bf3 {[%clk 0:00:13]} 54. Kc7 {[%clk 0:00:17]}  Bc6 {[%clk 0:00:09]} 55. Rh4 {[%clk 0:00:17]}  Ka4 {[%clk 0:00:09]} 56. Kb6 {[%clk 0:00:15]}  Kb3 {[%clk 0:00:09]} 57. Kc5 {[%clk 0:00:14]}  Kxb2 {[%clk 0:00:07]} 58. Rxh5 {[%clk 0:00:14]}  Kb3 {[%clk 0:00:07]} 59. Rh3+ {[%clk 0:00:14]}  Kc2 {[%clk 0:00:07]} 60. Re3 {[%clk 0:00:13]}  Kd2 {[%clk 0:00:07]} 61. Ra3 {[%clk 0:00:13]}  Kc2 {[%clk 0:00:07]} 62. Kc4 {[%clk 0:00:13]}  Bb5+ {[%clk 0:00:07]} 63. Kd4 {[%clk 0:00:14]}  Bc6 {[%clk 0:00:08]} 64. Rc3+ {[%clk 0:00:13]}  Kb2 {[%clk 0:00:08]} 65. Re3 {[%clk 0:00:13]}  Bb5 {[%clk 0:00:07]} 66. Re7 {[%clk 0:00:12]}  Bc6 {[%clk 0:00:08]} 67. Kc5 {[%clk 0:00:13]}  Kb3 {[%clk 0:00:08]} 68. Rc7 {[%clk 0:00:14]}  Ka4 {[%clk 0:00:08]} 69. Re7 {[%clk 0:00:13]}  Bh1 {[%clk 0:00:05]} 70. Re1 {[%clk 0:00:12]}  Bc6 {[%clk 0:00:03]} 71. Kc4 {[%clk 0:00:13]}  Ka3 {[%clk 0:00:03]} 72. Ra1+ {[%clk 0:00:10]}  Kb2 {[%clk 0:00:03]} 73. Ra5 {[%clk 0:00:10]}  Kc2 {[%clk 0:00:04]} 74. Re5 {[%clk 0:00:10]}  Kb2 {[%clk 0:00:04]} 75. Re3 {[%clk 0:00:10]}  Kc2 {[%clk 0:00:04]} 76. Kc5 {[%clk 0:00:10]}  Kb2 {[%clk 0:00:04]} 77. Kd4 {[%clk 0:00:09]}  Kc2 {[%clk 0:00:05]} 78. Rc3+ {[%clk 0:00:10]}  Kb2 {[%clk 0:00:05]} 79. Kc4 {[%clk 0:00:09]}  Ka2 {[%clk 0:00:05]} 80. Kc5 {[%clk 0:00:08]}  Kb2 {[%clk 0:00:05]} 81. Rh3 {[%clk 0:00:08]}  Kc2 {[%clk 0:00:06]} 82. Rh6 {[%clk 0:00:08]}  Be4 {[%clk 0:00:06]} 83. Kb6 {[%clk 0:00:07]}  Kb3 {[%clk 0:00:06]} 84. Rh4 {[%clk 0:00:07]}  Bc6 {[%clk 0:00:06]} 85. Rd4 {[%clk 0:00:07]}  Kc3 {[%clk 0:00:06]} 86. Rf4 {[%clk 0:00:07]}  Kb3 {[%clk 0:00:07]} 87. Kc5 {[%clk 0:00:08]}  Kc3 {[%clk 0:00:07]} 88. Rh4 {[%clk 0:00:08]}  Kb3 {[%clk 0:00:07]} 89. Rh3+ {[%clk 0:00:09]}  Kc2 {[%clk 0:00:07]} 1/2-1/2


[Site "https://www.chess.com"]

[Event "Titled Tuesday Blitz June 20 Early 2023"]
[White "Ning, Kaiyu"]
[Black "Kovacsy, Barnabas"]
[WhiteFideId "8614750"]
[BlackFideId "769290"]
[WhiteElo "2287"]
[BlackElo "2130"]
[Result "0-1"]
[Round "1"]
[TimeControl "180+2"]
[Date "2023.06.20"]
[WhiteClock "0:00:09"]
[BlackClock "0:01:04"]
[Board "175"]

1. e4 {[%clk 0:02:59]}  c5 {[%clk 0:03:00]} 2. Nf3 {[%clk 0:02:59]}  e6 {[%clk 0:03:00]} 3. d4 {[%clk 0:02:59]}  cxd4 {[%clk 0:03:01]} 4. Nxd4 {[%clk 0:03:00]}  Nc6 {[%clk 0:03:02]} 5. Nc3 {[%clk 0:03:00]}  Qc7 {[%clk 0:03:02]} 6. g3 {[%clk 0:02:59]}  a6 {[%clk 0:03:01]} 7. Bg2 {[%clk 0:02:59]}  Nf6 {[%clk 0:03:02]} 8. O-O {[%clk 0:02:59]}  Nxd4 {[%clk 0:03:02]} 9. Qxd4 {[%clk 0:02:59]}  Bc5 {[%clk 0:03:02]} 10. Bf4 {[%clk 0:02:59]}  d6 {[%clk 0:03:03]} 11. Qd2 {[%clk 0:02:55]}  h6 {[%clk 0:03:02]} 12. Rad1 {[%clk 0:02:54]}  e5 {[%clk 0:02:59]} 13. Be3 {[%clk 0:02:55]}  Be6 {[%clk 0:02:59]} 14. Bxc5 {[%clk 0:02:53]}  dxc5 {[%clk 0:02:59]} 15. Nd5 {[%clk 0:02:53]}  Bxd5 {[%clk 0:02:59]} 16. exd5 {[%clk 0:02:54]}  Qd6 {[%clk 0:02:58]} 17. c4 {[%clk 0:02:52]}  O-O {[%clk 0:02:58]} 18. Bh3 {[%clk 0:02:52]}  e4 {[%clk 0:02:54]} 19. Rde1 {[%clk 0:02:39]}  Rfe8 {[%clk 0:02:53]} 20. b3 {[%clk 0:02:33]}  Re5 {[%clk 0:02:45]} 21. f4 {[%clk 0:02:20]}  exf3 {[%clk 0:02:29]} 22. Rxf3 {[%clk 0:02:18]}  Rae8 {[%clk 0:02:26]} 23. Rfe3 {[%clk 0:02:18]}  Rxe3 {[%clk 0:02:24]} 24. Rxe3 {[%clk 0:02:18]}  Rxe3 {[%clk 0:02:23]} 25. Qxe3 {[%clk 0:02:18]}  b6 {[%clk 0:02:22]} 26. a3 {[%clk 0:02:07]}  a5 {[%clk 0:02:21]} 27. Bf5 {[%clk 0:01:52]}  g6 {[%clk 0:02:14]} 28. Bc8 {[%clk 0:01:52]}  Kg7 {[%clk 0:02:12]} 29. Kg2 {[%clk 0:01:45]}  h5 {[%clk 0:02:11]} 30. Qe2 {[%clk 0:01:20]}  Qc7 {[%clk 0:02:07]} 31. Ba6 {[%clk 0:01:17]}  Qd6 {[%clk 0:02:05]} 32. Bb5 {[%clk 0:01:12]}  Qc7 {[%clk 0:01:53]} 33. h3 {[%clk 0:01:05]}  Qd6 {[%clk 0:01:53]} 34. Qe3 {[%clk 0:01:05]}  Qc7 {[%clk 0:01:42]} 35. Kf3 {[%clk 0:01:04]}  Kf8 {[%clk 0:01:31]} 36. Qh6+ {[%clk 0:00:55]}  Ke7 {[%clk 0:01:30]} 37. Qg5 {[%clk 0:00:46]}  Qd6 {[%clk 0:01:29]} 38. Ke3 {[%clk 0:00:40]}  Qc7 {[%clk 0:01:22]} 39. Kd3 {[%clk 0:00:38]}  Qd6 {[%clk 0:01:20]} 40. Kc2 {[%clk 0:00:38]}  Qc7 {[%clk 0:01:20]} 41. b4 {[%clk 0:00:35]}  axb4 {[%clk 0:01:19]} 42. axb4 {[%clk 0:00:35]}  Qd6 {[%clk 0:01:19]} 43. Kb3 {[%clk 0:00:33]}  Qc7 {[%clk 0:01:17]} 44. bxc5 {[%clk 0:00:24]}  bxc5 {[%clk 0:01:17]} 45. h4 {[%clk 0:00:19]}  Qd6 {[%clk 0:01:15]} 46. Bc6 {[%clk 0:00:19]}  Kd8 {[%clk 0:01:14]} 47. Ka4 {[%clk 0:00:19]}  Kc7 {[%clk 0:01:14]} 48. Qd2 {[%clk 0:00:15]}  Kd8 {[%clk 0:01:11]} 49. Qa5+ {[%clk 0:00:14]}  Ke7 {[%clk 0:01:10]} 50. Qa7+ {[%clk 0:00:14]}  Kf8 {[%clk 0:01:09]} 51. Kb5 {[%clk 0:00:14]}  Ne4 {[%clk 0:01:09]} 52. Qa8+ {[%clk 0:00:14]}  Kg7 {[%clk 0:01:09]} 53. Qe8 {[%clk 0:00:13]}  Nxg3 {[%clk 0:01:04]} 54. Qe4 {[%clk 0:00:09]}  Nxe4 {[%clk 0:01:04]} 0-1


[Site "https://www.chess.com"]

[Event "Titled Tuesday Blitz June 20 Early 2023"]
[White "Cesar Maestre, Bernardo"]
[Black "Ilkhomi, Jaloliddin"]
[WhiteFideId "24542547"]
[BlackFideId "14700948"]
[WhiteElo "2271"]
[BlackElo "2045"]
[Result "0-1"]
[Round "1"]
[TimeControl "180+2"]
[Date "2023.06.20"]
[WhiteClock "0:00:02"]
[BlackClock "0:00:16"]
[Board "176"]

1. d4 {[%clk 0:02:59]}  Nf6 {[%clk 0:02:59]} 2. Nf3 {[%clk 0:02:58]}  e6 {[%clk 0:03:00]} 3. c4 {[%clk 0:02:57]}  b6 {[%clk 0:02:59]} 4. g3 {[%clk 0:02:57]}  Bb7 {[%clk 0:02:59]} 5. Bg2 {[%clk 0:02:58]}  Be7 {[%clk 0:02:56]} 6. O-O {[%clk 0:02:58]}  O-O {[%clk 0:02:56]} 7. Re1 {[%clk 0:02:56]}  d5 {[%clk 0:02:54]} 8. cxd5 {[%clk 0:02:54]}  exd5 {[%clk 0:02:53]} 9. Nc3 {[%clk 0:02:55]}  Nbd7 {[%clk 0:02:53]} 10. Bf4 {[%clk 0:02:55]}  a6 {[%clk 0:02:49]} 11. h4 {[%clk 0:02:54]}  Ne4 {[%clk 0:02:48]} 12. Nxe4 {[%clk 0:02:51]}  dxe4 {[%clk 0:02:49]} 13. Nd2 {[%clk 0:02:52]}  Nf6 {[%clk 0:02:47]} 14. e3 {[%clk 0:02:48]}  Bd6 {[%clk 0:02:43]} 15. Bxd6 {[%clk 0:02:44]}  Qxd6 {[%clk 0:02:43]} 16. Qc2 {[%clk 0:02:43]}  Qe7 {[%clk 0:02:37]} 17. Rac1 {[%clk 0:02:42]}  Rac8 {[%clk 0:02:38]} 18. Bh3 {[%clk 0:02:36]}  h6 {[%clk 0:02:27]} 19. Bxc8 {[%clk 0:02:34]}  Rxc8 {[%clk 0:02:28]} 20. Nc4 {[%clk 0:02:28]}  Qe6 {[%clk 0:02:23]} 21. Ne5 {[%clk 0:02:18]}  Bd5 {[%clk 0:02:08]} 22. b3 {[%clk 0:02:13]}  Qh3 {[%clk 0:02:01]} 23. Qe2 {[%clk 0:02:12]}  g5 {[%clk 0:02:01]} 24. hxg5 {[%clk 0:02:05]}  hxg5 {[%clk 0:02:02]} 25. Qxa6 {[%clk 0:02:04]}  Kg7 {[%clk 0:02:00]} 26. Qf1 {[%clk 0:02:00]}  Qh5 {[%clk 0:01:50]} 27. Qg2 {[%clk 0:01:56]}  Ng4 {[%clk 0:01:39]} 28. Qh1 {[%clk 0:01:33]}  Qxh1+ {[%clk 0:01:30]} 29. Kxh1 {[%clk 0:01:34]}  Nxf2+ {[%clk 0:01:27]} 30. Kg1 {[%clk 0:01:30]}  Nd3 {[%clk 0:01:10]} 31. Nxd3 {[%clk 0:01:25]}  exd3 {[%clk 0:01:10]} 32. Rcd1 {[%clk 0:01:07]}  Be4 {[%clk 0:01:10]} 33. Rd2 {[%clk 0:00:59]}  Rh8 {[%clk 0:01:11]} 34. Rg2 {[%clk 0:00:48]}  Bxg2 {[%clk 0:00:32]} 35. Kxg2 {[%clk 0:00:49]}  Ra8 {[%clk 0:00:32]} 36. a4 {[%clk 0:00:46]}  b5 {[%clk 0:00:32]} 37. Ra1 {[%clk 0:00:39]}  bxa4 {[%clk 0:00:25]} 38. bxa4 {[%clk 0:00:40]}  g4 {[%clk 0:00:26]} 39. Kf2 {[%clk 0:00:36]}  Kf6 {[%clk 0:00:24]} 40. Ke1 {[%clk 0:00:34]}  Kf5 {[%clk 0:00:24]} 41. Kd2 {[%clk 0:00:33]}  Ke4 {[%clk 0:00:25]} 42. a5 {[%clk 0:00:32]}  Ra6 {[%clk 0:00:25]} 43. Ra3 {[%clk 0:00:32]}  f5 {[%clk 0:00:25]} 44. Ra4 {[%clk 0:00:25]}  c6 {[%clk 0:00:25]} 45. Ra1 {[%clk 0:00:21]}  Kf3 {[%clk 0:00:20]} 46. Kxd3 {[%clk 0:00:19]}  Kxg3 {[%clk 0:00:21]} 47. e4 {[%clk 0:00:17]}  f4 {[%clk 0:00:19]} 48. e5 {[%clk 0:00:16]}  f3 {[%clk 0:00:20]} 49. e6 {[%clk 0:00:16]}  Kf4 {[%clk 0:00:20]} 50. e7 {[%clk 0:00:15]}  Ra8 {[%clk 0:00:20]} 51. a6 {[%clk 0:00:16]}  g3 {[%clk 0:00:19]} 52. a7 {[%clk 0:00:16]}  g2 {[%clk 0:00:19]} 53. Kd2 {[%clk 0:00:05]}  f2 {[%clk 0:00:19]} 54. Ke2 {[%clk 0:00:02]}  g1=Q {[%clk 0:00:16]} 0-1


[Site "https://www.chess.com"]

[Event "Titled Tuesday Blitz June 20 Early 2023"]
[White "Ziatdinov, Raset"]
[Black "Domingo Nunez, Ruben"]
[WhiteFideId "2015323"]
[BlackFideId "22245570"]
[WhiteElo "2220"]
[BlackElo "2404"]
[Result "0-1"]
[Round "1"]
[TimeControl "180+2"]
[Date "2023.06.20"]
[WhiteClock "0:01:44"]
[BlackClock "0:02:14"]
[Board "178"]

1. e4 {[%clk 0:02:56]}  g6 {[%clk 0:02:59]} 2. d4 {[%clk 0:02:56]}  Bg7 {[%clk 0:03:00]} 3. Nc3 {[%clk 0:02:55]}  c6 {[%clk 0:03:01]} 4. Nf3 {[%clk 0:02:55]}  d5 {[%clk 0:03:01]} 5. e5 {[%clk 0:02:54]}  f6 {[%clk 0:03:02]} 6. h4 {[%clk 0:02:49]}  Bg4 {[%clk 0:03:02]} 7. Be2 {[%clk 0:02:48]}  Bxf3 {[%clk 0:02:55]} 8. Bxf3 {[%clk 0:02:47]}  fxe5 {[%clk 0:02:55]} 9. dxe5 {[%clk 0:02:44]}  Bxe5 {[%clk 0:02:55]} 10. h5 {[%clk 0:02:45]}  Qd6 {[%clk 0:02:55]} 11. hxg6 {[%clk 0:02:34]}  hxg6 {[%clk 0:02:56]} 12. Ke2 {[%clk 0:02:31]}  Nd7 {[%clk 0:02:47]} 13. Be3 {[%clk 0:02:26]}  Rxh1 {[%clk 0:02:22]} 14. Qxh1 {[%clk 0:02:25]}  Qb4 {[%clk 0:02:23]} 15. Qh7 {[%clk 0:02:01]}  O-O-O {[%clk 0:02:21]} 16. Rb1 {[%clk 0:01:44]}  Bxc3 {[%clk 0:02:14]} 0-1


[Site "https://www.chess.com"]

[Event "Titled Tuesday Blitz June 20 Early 2023"]
[White "Budrewicz, Krzysztof"]
[Black "Sarkar, Justin"]
[WhiteFideId "1127950"]
[BlackFideId "2010011"]
[WhiteElo "2230"]
[BlackElo "2151"]
[Result "1-0"]
[Round "1"]
[TimeControl "180+2"]
[Date "2023.06.20"]
[WhiteClock "0:02:47"]
[BlackClock "0:00:28"]
[Board "179"]

1. d4 {[%clk 0:02:58]}  Nf6 {[%clk 0:02:00]} 2. c4 {[%clk 0:02:55]}  e6 {[%clk 0:02:00]} 3. Nf3 {[%clk 0:02:55]}  d5 {[%clk 0:01:59]} 4. Nc3 {[%clk 0:02:55]}  Nbd7 {[%clk 0:01:58]} 5. g3 {[%clk 0:02:55]}  dxc4 {[%clk 0:01:53]} 6. Bg2 {[%clk 0:02:55]}  Be7 {[%clk 0:01:51]} 7. O-O {[%clk 0:02:55]}  O-O {[%clk 0:01:51]} 8. e4 {[%clk 0:02:55]}  c5 {[%clk 0:01:49]} 9. d5 {[%clk 0:02:52]}  exd5 {[%clk 0:01:44]} 10. e5 {[%clk 0:02:52]}  Ne4 {[%clk 0:01:37]} 11. Nxd5 {[%clk 0:02:47]}  Nb6 {[%clk 0:01:21]} 12. Nxe7+ {[%clk 0:02:47]}  Qxe7 {[%clk 0:00:28]} 13. Re1 {[%clk 0:02:47]} 1-0


[Site "https://www.chess.com"]